[Event "Saint Louis Norm Congress-IM 2022"]
[Site "Saint Louis"]
[Date "2022.05.20"]
[Round "3.3"]
[White "Marek, Matyas"]
[Black "Antova, Gabriela"]
[Result "1-0"]
[ECO "A07"]
[WhiteElo "2363"]
[BlackElo "2293"]
[Annotator "TA"]
[PlyCount "162"]
[EventDate "2022.05.20"]
[EventType "tourn"]
[EventCountry "USA"]
[SourceTitle "playchess.com"]
[Source "ChessBase"]
[SourceQuality "1"]
[TimeControl "5400+30"]

{[%evp 20,162,33,12,13,12,16,0,0,0,0,0,0,-28,0,-25,-20,-20,-5,-33,-25,-43,-35,-38,-29,-29,-29,-29,-27,-68,-38,-80,-13,-35,-34,-46,-33,-16,-20,-17,-6,-14,-3,-4,-14,-3,-4,-16,0,0,27,0,568,577,547,30,31,41,41,46,56,-63,107,11,301,138,199,189,231,62,154,160,163,0,0,0,114,114,187,186,185,166,190,187,183,185,185,176,177,113,260,235,253,247,398,437,477,116,434,0,358,8,788,711,771,760,583,480,900,737,657,495,759,752,704,589,632,619,612,606,584,427,440,443,29977,29978,29977,29978,29979,29980,29981,29982,29981,29982,29983,29984,29984,29985,29987,29988,29988,29989,29989,29990,29990]} 1. Nf3 {[%emt 0:00:09]} d5 {[%emt 0:00:36]} 2. g3 {[%emt 0:00:04]} Bg4 {[%emt 0:08:07]} 3. Bg2 {[%emt 0:00:05]} Nd7 {[%emt 0:02:35]} 4. O-O {[%emt 0:00:24]} e5 {[%emt 0:01:25]} 5. d3 {[%emt 0:00:03]} Ngf6 {[%emt 0:00:41]} 6. h3 {[%emt 0:01:48]} Bh5 {[%emt 0:03:07]} 7. Qe1 {[%emt 0:02:57]} c6 {[%emt 0:04:59]} 8. e4 {[%emt 0:00:06]} dxe4 {[%emt 0:00:22]} 9. dxe4 {[%emt 0:00:02]} Bc5 {[%emt 0:00:59]} 10. Nbd2 {[%emt 0:00:22][%cal Bb1d2,Bd2c4,Bc4a5][%mdl 32]} O-O {[%emt 0:00:33]} 11. Nc4 {[%emt 0:00:42]} Qc7 {[%emt 0:01:48] A07: Réti Opening: New York and Capablanca Systems.} 12. a4 {[%emt 0:00:19]} b5 {[%emt 0:01:26]} 13. Na5 {[%emt 0:02:00]} Bb6 {[%emt 0:00:54] The position is equal.} 14. Nb3 {[%emt 0:00:22]} a6 {[%emt 0:00:20] [#]} 15. a5 $146 {[%emt 0:01:03]} ({Predecessor:} 15. Bg5 c5 16. c4 bxc4 17. Nbd2 Ba5 18. Qc1 c3 19. bxc3 c4 20. Qc2 Rac8 21. Rfd1 {1-0 (72) Ju,W (2544)-Batchimeg,T (2298) Geneve 2013}) 15... Ba7 {[%emt 0:00:58]} 16. Bg5 {[%emt 0:10:30]} Rab8 {[%emt 0:11:16]} 17. Nbd2 {[%emt 0:06:38]} h6 {[%emt 0:08:18]} 18. Be3 {[%emt 0:00:20]} Bxf3 {[%emt 0:07:47]} 19. Bxf3 {[%emt 0:00:59]} Rfd8 {[%emt 0:01:59]} 20. Qe2 {[%emt 0:07:30]} Nf8 {[%emt 0:02:50]} 21. Rfd1 {[%emt 0:00:48]} Ne6 {[%emt 0:01:14]} 22. c3 {[%emt 0:00:24]} Bxe3 {[%emt 0:03:01]} 23. Qxe3 {[%emt 0:00:08]} c5 {[%emt 0:00:51]} 24. Be2 {[%emt 0:10:23]} Rd7 {[%emt 0:04:27]} 25. Nf3 {[%emt 0:04:09]} Rbd8 {[%emt 0:03:41]} (25... c4 $17) 26. Rxd7 {[%emt 0:13:01]} Nxd7 {[%emt 0:02:22][%cal Bf6d7,Bd7b8,Bb8c6][%mdl 32]} 27. b4 {[%emt 0:02:05]} Nb8 {[%emt 0:04:26]} 28. Rc1 {[%emt 0:19:21]} Rc8 {[%emt 0:07:55] aiming for ...cxb4.} 29. Rd1 {[%emt 0:03:03]} Nc6 {[%emt 0:03:09]} 30. bxc5 {[%emt 0:00:55]} Nxa5 {[%emt 0:01:04] Pair of Knights!} 31. Rd5 {[%emt 0:00:15]} Nc6 {[%emt 0:03:44]} 32. Rd6 {[%emt 0:05:57]} Qa7 {[%emt 0:03:17]} 33. Rd5 {[%emt 0:02:21]} Nc7 {[%emt 0:03:05]} 34. Rd7 {[%emt 0:01:43]} Qb8 {[%emt 0:02:08]} (34... Nb8 $5 {[%cal Rb8d7]} 35. Re7 (35. Nxe5 $2 Nxd7 36. Nxd7 Ne6 $19) 35... Nc6 $11) 35. Qd2 {[%emt 0:01:20]} Ne8 $2 {[%emt 0:00:58][%mdl 8192]} (35... Ne6 $11 {and Black stays safe.} 36. Qa2 Ncd8) 36. Qd5 $18 {[%emt 0:03:36]} Nd8 {[%emt 0:00:21]} 37. Qxe5 {[%emt 0:02:09]} (37. Nxe5 $18 Nf6 38. Rxd8+ $1 {[%mdl 512]} Rxd8 39. Qxf7+ Kh7 40. Qg6+ (40. f4 Rd2 $14) 40... Kg8 41. Nc6 (41. f4 Qa7 $11)) 37... Qxe5 $11 {[%emt 0:00:58]} 38. Nxe5 {[%emt 0:00:01]} Nf6 {[%emt 0:00:20]} 39. Ra7 {[%emt 0:00:55]} Nxe4 {[%emt 0:01:03]} 40. c6 {[%emt 0:01:00]} (40. Bg4 $1 $14 Rxc5 41. Nd7) 40... Nc5 $2 {[%emt 0:00:42]} (40... Nxc3 41. Bg4 Nxc6 42. Rxa6 $1 $16) (40... Nxc6 $15 {keeps the upper hand.} 41. Nxc6 Rxc6) 41. Bg4 {[%emt 0:00:29] White is much more active.} (41. Bf3 $16) 41... Nde6 $2 {[%emt 0:00:33][%mdl 8192]} (41... Nxc6 $11 {and Black has nothing to worry.} 42. Rxa6 Re8 43. Rxc6 Rxe5) 42. Rxf7 {[%emt 0:00:31]} (42. f4 $1 $18 {and the rest is easy.}) 42... Rxc6 {[%emt 0:00:35]} (42... Rc7 $16 43. Rf3 a5) 43. Re7 $1 $18 {[%emt 0:00:23]} Rd6 {[%emt 0:00:32]} 44. Bf5 $2 {[%emt 0:00:38]} (44. Re8+ $18 Nf8 45. Rc8) 44... Nf8 {[%emt 0:00:24]} ({Black should try} 44... Kf8 $14 45. Rf7+ Ke8) 45. Re8 $16 {[%emt 0:00:08]} Nce6 {[%emt 0:00:28]} 46. g4 $2 {[%emt 0:00:42]} (46. Ra8 $1 $18) 46... g5 {[%emt 0:00:26]} 47. Re7 {[%emt 0:00:18]} Ng7 {[%emt 0:00:38]} (47... Nf4 $11 {keeps the balance.}) 48. Bc2 $1 {[%emt 0:00:03]} Nfe6 {[%emt 0:00:24]} (48... a5 $16 {is a better defense.}) 49. Bb3 $18 {[%emt 0:00:17]} Kf8 {[%emt 0:00:22] [#]} 50. Ng6+ {[%emt 0:00:46]} Kg8 {[%emt 0:00:00]} 51. f4 {[%emt 0:01:00]} gxf4 {[%emt 0:00:16]} 52. Nxf4 {[%emt 0:00:01]} Kf8 {[%emt 0:00:12]} 53. Ng6+ {[%emt 0:01:02]} ({Much less strong is} 53. Rxe6 $6 Nxe6 54. Nxe6+ (54. Bxe6 Rc6 $11) 54... Ke7 $11) (53. Nxe6+ $2 Kxe7 54. Nxg7 Rd3 55. Nf5+ Kf6 $19) 53... Kg8 {[%emt 0:00:01]} 54. h4 {[%emt 0:00:34]} (54. Rb7 $18) 54... Kh7 {[%emt 0:00:45] [#]} (54... a5 $16) 55. h5 $1 {[%emt 0:00:22]} Nc5 {[%emt 0:00:41]} 56. Bf7 {[%emt 0:00:34]} a5 $2 {[%emt 0:01:48]} (56... Nxh5 57. gxh5 Kg7) 57. Rc7 {[%emt 0:00:02]} Ne4 {[%emt 0:00:31]} 58. Nf8+ {[%emt 0:00:29]} Kh8 {[%emt 0:00:02]} 59. Ng6+ {[%emt 0:00:05]} Kh7 {[%emt 0:00:06]} 60. Ne7 $2 {[%emt 0:01:33]} (60. Ne5 $18 {Strongly threatening Bg6+.} Rd1+ 61. Kg2 Rd2+ 62. Kf1) 60... Nxh5 $2 {[%emt 0:01:24][%mdl 8192]} 61. gxh5 {[%emt 0:00:32]} Rd1+ {[%emt 0:00:25]} 62. Kg2 {[%emt 0:00:16]} Kg7 {[%emt 0:00:08]} 63. Bg6 {[%emt 0:00:16]} Ng5 {[%emt 0:00:56]} (63... Nd6 $142 64. Nc6+ Kf6 65. Nxa5 Kg5) 64. Nd5+ {[%emt 0:00:07]} Kf8 {[%emt 0:00:20]} 65. Nf6 {[%emt 0:01:23]} b4 {[%emt 0:00:42]} (65... Rd2+ $142 66. Kg3 Rd1 67. Rc8+ Kg7 68. Ne8+ Kf8 69. Nd6+ Ke7 70. Nxb5 Ra1) 66. cxb4 {[%emt 0:00:09]} axb4 {[%emt 0:00:05]} 67. Rc8+ {[%emt 0:00:40]} Ke7 {[%emt 0:00:18]} 68. Ng8+ {[%emt 0:00:04]} Kd7 {[%emt 0:00:44]} 69. Bf5+ {[%emt 0:00:39]} Ne6 {[%emt 0:00:02]} 70. Rb8 {[%emt 0:00:16]} Kc7 {[%emt 0:00:53] Hoping for ...Nf4+.} 71. Rxb4 {[%emt 0:00:42]} ({Inferior is} 71. Bxe6 Kxb8 72. Bf7 (72. Nxh6 $2 Rd6 $19) 72... Rd6 $11) 71... Rd4 {[%emt 0:00:35]} (71... Ng7 $18 72. Bg4 Rd5) 72. Rxd4 {[%emt 0:00:31] White mates.} Nxd4 {[%emt 0:00:01]} 73. Nxh6 {[%emt 0:00:11]} Kd8 {[%emt 0:00:29]} 74. Kg3 {[%emt 0:00:03]} Ke7 {[%emt 0:00:31]} 75. Bd3 {[%emt 0:00:29]} Ne6 {[%emt 0:01:12]} 76. Ng4 {[%emt 0:00:08]} Kf8 {[%emt 0:00:21]} 77. h6 {[%emt 0:00:24]} Ng5 {[%emt 0:00:38]} 78. Bc4 {[%emt 0:00:34]} Ne4+ {[%emt 0:00:44]} 79. Kf4 {[%emt 0:00:08]} Nd6 {[%emt 0:00:16]} 80. Ba2 {[%emt 0:00:05]} Nc8 {[%emt 0:00:45]} 81. Kg5 {[%emt 0:00:15]} Ne7 {[%emt 0:00:32] Weighted Error Value: White=0.64/Black=0.54} 1-0

[Event "Saint Louis Norm Congress-IM 2022"]
[Site "Saint Louis"]
[Date "2022.05.20"]
[Round "3.4"]
[White "Grabinsky, Aaron"]
[Black "Ezra Paul Chambers"]
[Result "1-0"]
[ECO "B11"]
[WhiteElo "2401"]
[BlackElo "2232"]
[Annotator "TA"]
[PlyCount "83"]
[EventDate "2022.05.20"]
[EventType "tourn"]
[EventCountry "USA"]
[SourceTitle "playchess.com"]
[Source "ChessBase"]
[SourceQuality "1"]
[TimeControl "5400+30"]

{[%evp 10,83,25,15,29,28,25,27,22,18,22,16,16,16,19,-5,0,-27,-16,-35,-15,-41,-25,-47,-52,-53,0,0,0,-2,-9,-20,0,0,79,0,0,-11,74,88,104,102,104,99,121,101,131,139,135,110,109,87,122,83,78,77,233,230,619,619,616,614,566,369,620,618,698,677,737,737,731,731,729,729,712,685]} 1. e4 {[%emt 0:00:04]} c6 {[%emt 0:00:19]} 2. Nc3 {[%emt 0:00:07]} d5 {[%emt 0:00:07]} 3. Nf3 {[%emt 0:00:06]} dxe4 {[%emt 0:00:12]} 4. Nxe4 {[%emt 0:00:07]} Nf6 {[%emt 0:00:05]} 5. Qe2 {[%emt 0:01:18]} Nxe4 {[%emt 0:00:12]} 6. Qxe4 {[%emt 0:00:05]} Nd7 {[%emt 0:00:08] B11: Caro-Kann: Two Knights Variation.} 7. Bc4 {[%emt 0:00:21] Black must now prevent Ng5.} Nf6 {[%emt 0:00:17] [#]} 8. Ne5 $1 {[%emt 0:00:16][%csl Ge5][%cal Rc4f7]} e6 {[%emt 0:00:13] White has an edge.} 9. Qe2 {[%emt 0:00:10]} b5 {[%emt 0:00:17]} 10. Bb3 {[%emt 0:01:07]} ({Of course not} 10. Nxc6 Qc7 11. Bd3 (11. Bxb5 a6 $17) 11... a6 $15) 10... Qc7 {[%emt 0:00:40]} 11. d4 {[%emt 0:02:08]} Bd6 {[%emt 0:01:20]} 12. Bg5 {[%emt 0:00:48]} O-O {[%emt 0:06:46]} 13. O-O {[%emt 0:08:25]} (13. Bxf6 $5 gxf6 14. Nd3 $11) 13... Nd5 {[%emt 0:08:04] ...f6 is the strong threat.} 14. Nf3 {[%emt 0:02:13]} Bb7 {[%emt 0:07:38] [#]} 15. c3 $146 {[%emt 0:06:13]} ({Predecessor:} 15. c4 bxc4 16. Bxc4 c5 17. Rac1 h6 18. dxc5 Qxc5 19. Bd3 Qb6 20. Bd2 Rac8 21. b3 {1-0 (40) Svidler,P (2714)-Keymer,V (2591) chess24.com INT 2021}) 15... h6 {[%emt 0:03:02]} 16. Be3 {[%emt 0:04:42]} a5 {[%emt 0:10:21]} 17. Rfd1 {[%emt 0:02:22]} c5 {[%emt 0:13:24]} (17... Nxe3 $15 18. fxe3 c5) 18. dxc5 $11 {[%emt 0:04:10]} Bxc5 {[%emt 0:00:34]} 19. Bxc5 {[%emt 0:00:12]} Qxc5 {[%emt 0:00:13]} 20. Qe5 {[%emt 0:07:05] Prevents Nf4.} Rfd8 {[%emt 0:01:30]} 21. a4 {[%emt 0:04:50]} Kf8 {[%emt 0:11:41]} (21... bxa4 $11 {remains equal.} 22. Rxa4 Qb6) 22. axb5 {[%emt 0:05:52]} ({Better is} 22. Ba2 $16) 22... Qxb5 {[%emt 0:00:32]} 23. Nd4 {[%emt 0:00:23]} Qe8 {[%emt 0:05:57]} (23... Qb6 $11 {keeps the balance.}) 24. c4 $16 {[%emt 0:02:46] aiming for Ba4. White is much more active.} Nb4 {[%emt 0:03:43]} 25. Rxa5 {[%emt 0:06:24] Threatens to win with Qc5+.} Kg8 {[%emt 0:00:49]} 26. Rxa8 {[%emt 0:02:09]} Bxa8 {[%emt 0:00:40]} 27. h3 $40 {[%emt 0:03:35][%mdl 128] White attacks with force.} Rc8 {[%emt 0:05:56]} 28. Qd6 {[%emt 0:02:56]} Qf8 {[%emt 0:04:57]} 29. Nb5 {[%emt 0:02:57][%cal Bd4b5,Bb5c3,Bc3a4,Ba4b6,Bd7b6,Bb6d7,Bd7e5,Be5c6][%mdl 32]} Rb8 {[%emt 0:02:11]} 30. Ba4 {[%emt 0:03:30]} Bc6 {[%emt 0:01:04]} 31. Nc3 {[%emt 0:03:35]} Bxa4 {[%emt 0:02:11]} 32. Nxa4 {[%emt 0:01:23]} Qe8 $2 {[%emt 0:01:10] [#] Loses the game.} (32... Qxd6 $16 33. Rxd6 Kf8) 33. Nb6 $1 $18 {[%emt 0:01:04]} Nc6 {[%emt 0:01:58]} (33... Qf8 34. Qxf8+ Rxf8) 34. Nd7 {[%emt 0:02:18]} Rc8 {[%emt 0:00:16]} 35. b4 {[%emt 0:01:11][%cal Bb2b4,Bb4b5][%mdl 32]} Ne7 {[%emt 0:00:19]} 36. Nb6 {[%emt 0:02:51]} Rb8 {[%emt 0:00:59]} (36... Rc6) 37. b5 {[%emt 0:01:48] White is clearly winning.} Nf5 {[%emt 0:00:19]} 38. Qc7 {[%emt 0:00:48]} e5 {[%emt 0:00:41]} 39. Nd7 {[%emt 0:00:54]} Rc8 {[%emt 0:00:30]} 40. Qxe5 {[%emt 0:00:19]} Qxe5 {[%emt 0:00:05]} 41. Nxe5 {[%emt 0:00:16]} f6 {[%emt 0:00:03]} 42. Nc6 {[%emt 0:00:25] Weighted Error Value: White=0.16 (very precise) /Black=0.46} 1-0

[Event "Saint Louis Norm Congress-IM 2022"]
[Site "Saint Louis"]
[Date "2022.05.20"]
[Round "3.5"]
[White "Proleiko, Julian"]
[Black "Rodriguez Rivera, Pedro"]
[Result "1-0"]
[ECO "B07"]
[WhiteElo "2204"]
[BlackElo "2197"]
[Annotator "TA"]
[PlyCount "63"]
[EventDate "2022.05.20"]
[EventType "tourn"]
[EventCountry "USA"]
[SourceTitle "playchess.com"]
[Source "ChessBase"]
[SourceQuality "1"]
[TimeControl "5400+30"]

{[%evp 9,63,39,39,40,56,30,41,29,27,31,46,28,49,29,84,93,113,114,108,121,177,154,184,195,190,183,188,183,194,197,174,173,293,293,279,295,279,289,283,273,288,301,281,266,452,389,629,597,645,629,862,670,660,648,1136,815]} 1. e4 {[%emt 0:00:04]} d6 {[%emt 0:00:02]} 2. d4 {[%emt 0:00:07]} Nf6 {[%emt 0:00:02]} 3. Nc3 {[%emt 0:00:12]} e6 {[%emt 0:00:01]} 4. Nf3 {[%emt 0:00:12]} Be7 {[%emt 0:00:01]} 5. Bd3 {[%emt 0:00:10]} Nbd7 {[%emt 0:00:02]} 6. Bf4 {[%emt 0:01:39] B07: Pirc Defence: Miscellaneous Systems.} a6 {[%emt 0:05:52]} 7. O-O {[%emt 0:02:07] [#]} c5 $146 {[%emt 0:02:13]} ({Predecessor:} 7... b6 8. e5 dxe5 9. dxe5 Nd5 10. Nxd5 exd5 11. c4 Nf8 12. Nd4 Bc5 13. Nf5 Bxf5 14. Bxf5 {1-0 (68) Schwertel,G-Bandl,W GER email 2007}) 8. e5 {[%emt 0:01:07] White is slightly better.} dxe5 {[%emt 0:00:10]} 9. dxe5 {[%emt 0:00:05]} Nd5 {[%emt 0:00:32]} 10. Nxd5 {[%emt 0:00:07]} exd5 {[%emt 0:00:02]} 11. c4 $36 {[%emt 0:11:21][%mdl 2048] White fights for an advantage.} dxc4 {[%emt 0:03:02]} (11... Nb6 $11 {keeps the balance.}) 12. Be4 $1 $16 {[%emt 0:04:05][%cal Oe5e6] White stays focused until the end.} Nb6 {[%emt 0:04:44]} 13. Qc2 {[%emt 0:00:05] And now Rad1 would win. White is more active.} Qc7 {[%emt 0:02:46]} 14. Rad1 {[%emt 0:04:56]} Be6 {[%emt 0:02:58]} (14... Bg4 $16 {might work better.}) 15. Ng5 $1 $18 {[%emt 0:04:01]} (15. Bxh7 Nd5 16. Bg5 g6 17. Bxg6 Nb4 $11) 15... Bxg5 {[%emt 0:03:16]} 16. Bxg5 {[%emt 0:00:02]} h6 {[%emt 0:04:37]} 17. Bh4 {[%emt 0:04:58] f4 is the strong threat.} g5 {[%emt 0:04:07]} 18. Bg3 {[%emt 0:00:04] Black must now prevent f4.} Rd8 {[%emt 0:03:36] [#]} 19. Rd6 {[%emt 0:00:16]} (19. Rxd8+ Kxd8 20. f4 gxf4 21. Bxf4 Kc8 $11) 19... Nc8 {[%emt 0:03:49]} 20. Rxd8+ {[%emt 0:00:19]} Kxd8 {[%emt 0:00:28]} (20... Qxd8 $142 21. Bxb7 O-O) 21. f4 {[%emt 0:01:27]} gxf4 {[%emt 0:05:29] [#]} 22. Rd1+ $1 {[%emt 0:00:04]} ({Not} 22. Bxf4 Ne7 $14) ({Worse is} 22. Rxf4 Nb6 $11) 22... Ke8 {[%emt 0:01:24]} 23. Bh4 {[%emt 0:00:06]} ({Much less strong is} 23. Bxf4 $6 Bg4 $18) 23... Ne7 {[%emt 0:00:35]} 24. Bf6 {[%emt 0:00:21] This bishop pair is nice.} Rg8 {[%emt 0:00:05]} 25. Qa4+ {[%emt 0:11:09]} Bd7 {[%emt 0:03:43]} 26. Qxc4 {[%emt 0:00:06]} b5 $2 {[%emt 0:03:47]} (26... Bb5 27. Qc2 c4) 27. Qf1 {[%emt 0:01:36]} c4 $2 {[%emt 0:20:16]} (27... Nc6 28. Qxf4 Nd4 29. Qxh6 Bc8) 28. Qxf4 {[%emt 0:01:08] White is clearly winning.} c3 {[%emt 0:04:40]} 29. bxc3 {[%emt 0:02:00]} Rg4 {[%emt 0:01:58]} 30. Qf3 {[%emt 0:02:19]} Qc5+ {[%emt 0:03:18]} 31. Kh1 {[%emt 0:00:12]} Be6 {[%emt 0:01:31] [#] Prevents Bf5.} 32. Bc6+ $1 {[%emt 0:01:52][%mdl 512] Weighted Error Value: White=0.12 (very precise) /Black=0.24 (precise)} 1-0

[Event "Saint Louis Norm Congress-IM 2022"]
[Site "Saint Louis"]
[Date "2022.05.21"]
[Round "4.1"]
[White "Posthuma, Joshua"]
[Black "Rodriguez Rivera, Pedro"]
[Result "1-0"]
[ECO "A49"]
[WhiteElo "2405"]
[BlackElo "2197"]
[Annotator "TA"]
[PlyCount "103"]
[EventDate "2022.05.20"]
[EventType "tourn"]
[EventCountry "USA"]
[SourceTitle "playchess.com"]
[Source "ChessBase"]
[SourceQuality "1"]
[TimeControl "5400+30"]

{[%evp 15,103,23,31,32,34,42,63,66,97,94,92,84,144,159,132,94,119,86,108,114,118,139,148,142,137,137,208,190,177,138,178,178,189,185,296,179,469,488,489,481,503,508,507,472,462,457,666,660,647,604,597,586,947,939,931,899,1195,1197,1132,1172,1112,745,801,736,716,714,756,731,706,673,1221,1115,29973,29975,29975,29976,29976,29977,29977,29977,29980,29981,29981,29982,29982,29983,29983,29984,29983,29984]} 1. Nf3 {[%emt 0:00:05]} Nf6 {[%emt 0:00:07]} 2. b3 {[%emt 0:00:29]} g6 {[%emt 0:00:39]} 3. Bb2 {[%emt 0:00:17]} Bg7 {[%emt 0:00:01]} 4. g3 {[%emt 0:01:55]} d6 {[%emt 0:00:19]} 5. d4 {[%emt 0:00:25]} c6 {[%emt 0:00:18]} 6. Bg2 {[%emt 0:00:44]} a5 {[%emt 0:00:15]} 7. O-O {[%emt 0:06:31]} O-O {[%emt 0:00:19]} 8. a4 {[%emt 0:11:38]} Na6 {[%emt 0:00:13]} 9. Nbd2 {[%emt 0:01:47] A49: 1 d4 Nf6 2 Nf3 g6 3 g3: Anti-King's Indian systems.} Nd7 {[%emt 0:03:57]} 10. e4 {[%emt 0:03:53] [#]} Re8 $146 {[%emt 0:04:41]} ({Predecessor:} 10... Qc7 11. Re1 Re8 12. Nc4 Nb4 13. Qd2 d5 14. exd5 cxd5 15. Ne3 Nf6 16. c4 Bf5 {0-1 (38) Ianov,V (2305)-Shtembuliak,E (2352) Lutsk 2015}) 11. Re1 {[%emt 0:04:24] White is slightly better.} Nf8 {[%emt 0:00:26]} 12. Nc4 {[%emt 0:06:15]} Qc7 {[%emt 0:04:25]} 13. Qd2 {[%emt 0:02:29]} d5 {[%emt 0:12:15]} (13... Be6 $142) 14. exd5 $16 {[%emt 0:08:13]} (14. Nxa5 $6 b6 $14) 14... cxd5 {[%emt 0:01:34]} 15. Na3 {[%emt 0:00:35]} ({Much weaker is} 15. Nxa5 $6 b6 $11) 15... Qb6 {[%emt 0:07:19]} 16. Nb5 {[%emt 0:03:55]} Nc7 {[%emt 0:03:01]} 17. c4 {[%emt 0:01:02] White is more active.} Nxb5 {[%emt 0:01:00]} 18. axb5 {[%emt 0:02:52]} Be6 {[%emt 0:13:06]} 19. Bf1 {[%emt 0:02:38]} dxc4 {[%emt 0:02:03]} 20. bxc4 {[%emt 0:00:21]} Rec8 {[%emt 0:00:28]} (20... a4 $16 {might work better.} 21. Ra3 Qc7) 21. Ra4 {[%emt 0:09:57]} Qd8 {[%emt 0:02:10]} 22. Bc3 {[%emt 0:03:55]} b6 {[%emt 0:00:55]} 23. Ne5 {[%emt 0:01:12] And now Nc6 would win.} Bxe5 {[%emt 0:02:16]} 24. Rxe5 {[%emt 0:00:40]} Nd7 {[%emt 0:02:39]} (24... f6 $142) 25. Re4 {[%emt 0:05:28][%cal Oe4e6]} Qf8 $2 {[%emt 0:03:42] [#]} (25... Bf5 {was worth a try.} 26. Re2 e5) 26. Rxe6 $1 $18 {[%emt 0:07:49][%mdl 512]} fxe6 {[%emt 0:00:16] [#]} 27. Bh3 {[%emt 0:00:10] Against Qf5} Qf7 {[%emt 0:00:10]} 28. d5 {[%emt 0:01:41]} Nc5 {[%emt 0:02:22] [#]} 29. Qd4 $1 {[%emt 0:01:10][%csl Gc3][%cal Rd4h8]} Qf6 {[%emt 0:01:43] Inhibits Qh8+.} (29... e5 30. Qxe5) 30. Qe3 {[%emt 0:00:15]} Qf8 {[%emt 0:05:31]} (30... e5 $142 31. Bxe5 (31. Bxc8 Rxc8 32. Bxe5 Qf5 $16) 31... Qf8 32. Bxc8 Qxc8) 31. Bxe6+ {[%emt 0:01:16]} Nxe6 {[%emt 0:00:31]} 32. Qxe6+ {[%emt 0:01:35]} Qf7 {[%emt 0:00:01] ...Qxe6 is the strong threat.} 33. Qxb6 {[%emt 0:00:11]} Rf8 {[%emt 0:05:16]} 34. Qd4 {[%emt 0:01:32][%csl Gc3][%cal Rd4h8]} Qf6 {[%emt 0:00:02] Inhibits Qh8+.} 35. Qxf6 {[%emt 0:00:27]} exf6 {[%emt 0:00:08][%mdl 4096] Endgame KRR-KRB} 36. c5 {[%emt 0:01:00]} Rfd8 {[%emt 0:01:24]} 37. d6 {[%emt 0:00:31]} Kf7 {[%emt 0:00:41]} 38. b6 {[%emt 0:02:30]} Ke6 {[%emt 0:01:07]} 39. c6 {[%emt 0:00:57]} Kxd6 {[%emt 0:03:04]} 40. c7 {[%emt 0:00:15] Threatening mate with Rd4+.} Kc6 {[%emt 0:06:20]} 41. cxd8=Q {[%emt 0:00:33]} Rxd8 {[%emt 0:01:24]} 42. Bxa5 {[%emt 0:01:14] KRB-KR} Rd1+ {[%emt 0:01:09]} 43. Kg2 {[%emt 0:00:01] Black must now prevent Rc4+.} Rb1 {[%emt 0:00:37]} 44. Rb4 {[%emt 0:00:29] White mates.} Rxb4 {[%emt 0:00:15]} 45. Bxb4 {[%emt 0:00:02]} Kxb6 {[%emt 0:00:01] KB-K3P} 46. Kf3 {[%emt 0:00:21]} Kc6 {[%emt 0:00:03]} 47. Bc3 {[%emt 0:00:11]} f5 {[%emt 0:00:07]} 48. Kf4 {[%emt 0:00:05]} Kd5 {[%emt 0:00:08]} 49. Kg5 {[%emt 0:00:18]} Ke4 {[%emt 0:00:36]} 50. Kh6 {[%emt 0:00:16]} Kf3 {[%emt 0:00:11]} 51. Kxh7 {[%emt 0:00:25]} g5 {[%emt 0:00:14]} 52. Kg6 {[%emt 0:00:12][%csl LRf5,LRg5] Weighted Error Value: White=0.10 (very precise) /Black=0.57} 1-0